bitfinex/quotes_BTCUSD_20250218
["timestamp","ask_amount","ask_price","bid_price","bid_amount"]
[1739863818678,0.15,95720.0,95719.0,0.0063406]
[1739863819090,0.15,95720.0,95719.0,0.0113406]
[1739863819295,0.15,95720.0,95719.0,0.0063406]
[1739863819697,0.15,95720.0,95719.0,0.0083406]
[1739863819910,0.15,95720.0,95719.0,0.0023406]
[1739863820699,0.15,95720.0,95719.0,0.0053406]
[1739863821114,0.15,95720.0,95719.0,0.0023406]
[1739863821560,0.15,95720.0,95719.0,0.0053406]
[1739863822077,2.23036187,95720.0,95719.0,0.0053406]
[1739863822296,1.42421187,95720.0,95719.0,0.0053406]
[1739863822529,0.51819787,95720.0,95719.0,0.0053406]
[1739863822960,0.51496987,95720.0,95719.0,0.0023406]
[1739863823359,0.50347387,95720.0,95719.0,0.0023406]
[1739863823572,0.50447387,95720.0,95719.0,0.0003406]
[1739863823808,0.48412987,95720.0,95719.0,0.0003406]
[1739863823995,0.47127787,95720.0,95719.0,0.0003406]
[1739863824119,0.47227787,95720.0,95719.0,0.0003406]
[1739863824580,0.47127787,95720.0,95719.0,0.0003406]
[1739863824789,0.33212487,95720.0,95719.0,0.0003406]
[1739863825041,0.50083487,95720.0,95719.0,0.0003406]
[1739863825271,0.42005365,95720.0,95719.0,0.0003406]
[1739863825844,0.14884,95720.0,95719.0,0.0003406]
[1739863826082,0.297641,95720.0,95719.0,0.0003406]
[1739863826477,0.14884,95720.0,95719.0,0.0003406]
[1739863826679,0.14984,95720.0,95719.0,0.0003406]
[1739863826883,0.269241,95720.0,95719.0,0.0003406]
[1739863827303,0.268241,95720.0,95719.0,0.0003406]
[1739863827508,0.269241,95720.0,95719.0,0.0003406]
[1739863827940,0.270186,95720.0,95719.0,0.0003406]
[1739863828894,0.35472347,95720.0,95719.0,0.0003406]
[1739863829296,0.26990703,95720.0,95719.0,0.0003406]
[1739863829558,0.44395903,95720.0,95719.0,0.0003406]
[1739863830386,0.43248603,95720.0,95719.0,0.0003406]
[1739863830794,0.01737003,95720.0,95719.0,0.0815406]
[1739863830998,0.156707,95720.0,95719.0,0.0815406]
[1739863831209,0.02426472,95722.0,95719.0,0.0815406]
[1739863831418,0.156707,95720.0,95719.0,0.0815406]
[1739863832058,0.15,95722.0,95719.0,0.0815406]
[1739863832059,0.17420208,95722.0,95719.0,0.09419466]
[1739863832475,0.156707,95720.0,95719.0,0.09419466]
[1739863832653,0.38314008,95722.0,95719.0,0.09419466]
[1739863832654,0.18090708,95722.0,95719.0,0.09419466]
[1739863832894,0.15,95720.0,95719.0,0.09419466]
[1739863833520,0.306707,95720.0,95719.0,0.09419466]
[1739863833699,0.306707,95720.0,95719.0,0.0815406]
[1739863833700,0.15,95720.0,95719.0,0.0815406]
[1739863834671,0.02460923,95722.0,95719.0,0.0815406]
[1739863834881,0.02460923,95722.0,95719.0,0.2904836]
[1739863835128,0.15,95728.0,95719.0,0.0815406]
[1739863835332,0.15,95728.0,95720.0,0.04922056]
[1739863835507,0.156697,95726.0,95720.0,0.04922056]
[1739863835741,0.1742334,95728.0,95720.0,0.04922056]
[1739863835742,0.15,95724.0,95720.0,0.04922056]
[1739863835954,0.0242334,95728.0,95719.0,0.0815406]
[1739863836165,0.208934,95724.0,95719.0,0.0815406]
[1739863836362,0.156703,95723.0,95719.0,0.0815406]
[1739863836574,0.156702,95723.0,95719.0,0.0835406]
[1739863836782,0.156707,95720.0,95719.0,0.0835406]
[1739863836993,0.156707,95720.0,95719.0,0.0815406]
[1739863837168,0.208937,95723.0,95719.0,0.0815406]
[1739863837374,0.156705,95722.0,95719.0,0.0815406]
[1739863837587,0.156705,95722.0,95719.0,0.0845406]
[1739863837843,0.17407973,95728.0,95719.0,0.0865406]
[1739863838056,0.1567,95725.0,95719.0,0.0865406]
[1739863838259,0.156701,95724.0,95719.0,0.0835406]
[1739863839019,0.156701,95724.0,95719.0,0.13296206]
[1739863839293,0.156704,95722.0,95719.0,0.13096206]
[1739863839499,0.208931,95725.0,95719.0,0.13096206]
[1739863839500,0.306701,95724.0,95719.0,0.0815406]
[1739863839684,0.15,95724.0,95719.0,0.0865406]
[1739863839906,0.156702,95723.0,95719.0,0.0845406]
[1739863840223,0.156702,95723.0,95719.0,0.0835406]
[1739863840424,0.15,95724.0,95719.0,0.0835406]
[1739863840691,0.208936,95723.0,95719.0,0.0835406]
[1739863840931,0.15,95726.0,95719.0,0.0875406]
[1739863841139,0.156707,95720.0,95719.0,0.0855406]
[1739863841343,0.156707,95720.0,95719.0,0.0815406]
[1739863841776,0.156707,95720.0,95719.0,0.0845406]
[1739863842548,0.156707,95720.0,95719.0,0.0865406]
[1739863842757,0.156707,95720.0,95719.0,0.0845406]
[1739863842923,0.156707,95720.0,95719.0,0.0815406]
[1739863843146,0.156707,95720.0,95719.0,0.0845406]
[1739863843347,0.156707,95720.0,95719.0,0.0885406]
[1739863844929,0.02407973,95728.0,95719.0,0.0885406]
[1739863845137,0.156705,95721.0,95719.0,0.0885406]
[1739863845334,0.156707,95720.0,95719.0,0.0885406]
[1739863845891,0.156707,95720.0,95719.0,0.0855406]
[1739863846257,0.15,95726.0,95719.0,0.0865406]
[1739863846456,0.156707,95720.0,95719.0,0.0855406]
[1739863846667,0.15,95726.0,95719.0,0.0845406]
[1739863846869,0.02407973,95728.0,95719.0,0.0845406]
[1739863846870,0.156702,95723.0,95719.0,0.0855406]
[1739863847388,0.15,95723.0,95719.0,0.0845406]
[1739863847780,0.15,95723.0,95719.0,0.0855406]
[1739863847953,0.15,95723.0,95720.0,0.02872556]
[1739863848252,0.15,95723.0,95720.0,0.156707]
[1739863848461,0.17407973,95728.0,95720.0,0.156707]
[1739863848663,0.17407973,95728.0,95721.0,0.156704]
[1739863849078,0.15,95726.0,95719.0,0.0855406]
[1739863849287,0.15,95726.0,95719.0,0.2422486]
[1739863849485,0.15,95726.0,95721.0,0.156704]
[1739863849907,0.1501703,95726.0,95719.0,0.36400026]
[1739863850115,0.1501703,95726.0,95719.0,0.15705626]
[1739863850348,0.0001703,95726.0,95721.0,0.156704]
[1739863850554,0.0001703,95726.0,95722.0,0.156703]
[1739863850963,0.0001703,95726.0,95724.0,0.1567]
[1739863851172,0.0001703,95726.0,95722.0,0.01207504]
[1739863851377,0.0001703,95726.0,95725.0,0.156698]
[1739863851583,0.00890043,95728.0,95722.0,0.01207504]
[1739863851757,0.00890043,95728.0,95724.0,0.1567]
[1739863851961,0.00890043,95728.0,95724.0,0.20282566]
[1739863852164,0.00890043,95728.0,95724.0,0.20482566]
[1739863852566,0.00890043,95728.0,95724.0,0.04812566]
[1739863853295,0.00890043,95728.0,95724.0,0.002]
[1739863853430,0.00890043,95728.0,95724.0,0.003]
[1739863853639,0.00890043,95728.0,95727.0,0.156695]
[1739863853842,0.00890043,95728.0,95727.0,0.203895]
[1739863854365,0.00890043,95728.0,95727.0,0.0472]
[1739863854918,0.00890043,95728.0,95727.0,0.204895]
[1739863855526,0.00890043,95728.0,95727.0,0.203895]
[1739863856155,0.00890043,95728.0,95727.0,0.204895]
[1739863856357,0.00890043,95728.0,95727.0,0.203895]
[1739863856711,0.00890043,95728.0,95727.0,0.204895]
[1739863856918,0.00890043,95728.0,95727.0,0.206895]
[1739863857122,0.00890043,95728.0,95727.0,0.0502]
[1739863857771,0.00890043,95728.0,95727.0,0.206895]
[1739863860850,0.00890043,95728.0,95727.0,0.0502]
[1739863861496,0.15890043,95728.0,95727.0,0.003]
[1739863861699,0.31559343,95728.0,95727.0,0.003]
[1739863862483,0.31559343,95728.0,95727.0,0.002]
[1739863862687,0.31559343,95728.0,95727.0,0.003]
[1739863863323,0.15890043,95728.0,95727.0,0.003]
[1739863863481,0.15890043,95728.0,95727.0,0.001]
[1739863863882,0.15890043,95728.0,95727.0,0.002]
[1739863864086,0.15890043,95728.0,95727.0,0.0842]
[1739863864489,0.15890043,95728.0,95727.0,0.1500762]
[1739863865116,0.15890043,95728.0,95727.0,0.0842]
[1739863865531,0.15890043,95728.0,95727.0,0.18670365]
[1739863866373,0.15890043,95728.0,95727.0,0.18570365]
[1739863866736,0.15890043,95728.0,95727.0,0.18670365]
[1739863866945,0.15890043,95728.0,95727.0,0.18770365]
[1739863868406,0.156678,95738.0,95727.0,0.18770365]
[1739863868732,0.19157026,95740.0,95728.0,0.10250365]
[1739863869103,0.19157026,95740.0,95730.0,0.15669]
[1739863869311,0.03489526,95740.0,95730.0,0.15669]
[1739863869520,0.156676,95739.0,95730.0,0.15669]
[1739863871262,0.03489526,95740.0,95728.0,0.10250365]
[1739863871485,0.03489526,95740.0,95731.0,0.156688]
[1739863871697,0.03489526,95740.0,95728.0,0.14876089]
[1739863871698,0.03489526,95740.0,95729.0,0.208923]
[1739863871905,0.156678,95738.0,95728.0,0.10250365]
[1739863872115,0.156678,95738.0,95729.0,0.156692]
[1739863872322,0.156679,95737.0,95728.0,0.10250365]
[1739863872520,0.156679,95737.0,95728.0,0.25919665]
[1739863872728,0.03489526,95740.0,95728.0,0.10250365]
[1739863872929,0.03489526,95740.0,95729.0,0.156691]
[1739863873183,0.208902,95739.0,95728.0,0.10250365]
[1739863874174,0.156676,95739.0,95729.0,0.156692]
[1739863874295,0.03506546,95740.0,95728.0,0.10250365]
[1739863874490,0.208901,95739.0,95728.0,0.10250365]
[1739863874780,0.156681,95736.0,95728.0,0.10250365]
[1739863874912,0.156692,95729.0,95727.0,0.0003404]
[1739863876836,0.156692,95729.0,95727.0,0.0013404]
[1739863877005,0.156692,95729.0,95727.0,0.0023404]
[1739863877601,0.208909,95736.0,95727.0,0.0023404]
[1739863877800,0.156692,95729.0,95727.0,0.0023404]
[1739863877975,0.156687,95732.0,95727.0,0.03768132]
[1739863878215,0.208901,95739.0,95727.0,0.03768132]
[1739863878440,0.03506546,95740.0,95727.0,0.0013404]
[1739863878649,0.208903,95738.0,95727.0,0.0013404]
[1739863878792,0.03506546,95740.0,95727.0,0.0013404]
[1739863878793,0.156692,95729.0,95727.0,0.0013404]
[1739863878993,0.03506546,95740.0,95727.0,0.0003404]
[1739863879221,0.03506546,95740.0,95727.0,0.0013404]
[1739863879431,0.208903,95738.0,95727.0,0.0013404]
[1739863879628,0.156688,95732.0,95727.0,0.0013404]
[1739863879827,0.156689,95731.0,95727.0,0.0003404]
[1739863880031,0.156692,95729.0,95727.0,0.0013404]
[1739863880462,0.156692,95729.0,95728.0,0.03624092]
[1739863880625,0.03506546,95740.0,95727.0,0.0003404]
[1739863881038,0.156687,95732.0,95727.0,0.0003404]
[1739863881451,0.15669,95730.0,95727.0,0.0003404]
[1739863881678,0.156688,95732.0,95727.0,0.0003404]
[1739863882258,0.208909,95736.0,95727.0,0.0003404]
[1739863882455,0.156686,95733.0,95727.0,0.0003404]
[1739863882989,0.18506546,95740.0,95727.0,0.0003404]
[1739863883380,0.156685,95733.0,95728.0,0.001]
[1739863883762,0.156685,95733.0,95727.0,0.0003404]
[1739863884399,0.03506546,95740.0,95727.0,0.0003404]
[1739863884757,0.15,95738.0,95727.0,0.0003404]
[1739863884985,0.156687,95732.0,95727.0,0.0003404]
[1739863885198,0.156687,95732.0,95728.0,0.05181092]
[1739863885403,0.156686,95733.0,95728.0,0.05181092]
[1739863886198,0.156687,95732.0,95728.0,0.05181092]
[1739863887352,0.156686,95733.0,95728.0,0.05181092]
[1739863887749,0.07892193,95738.0,95728.0,0.05181092]
[1739863888102,0.156681,95736.0,95728.0,0.05181092]
[1739863888303,0.15,95737.0,95727.0,0.0003404]
[1739863888535,0.156684,95734.0,95727.0,0.0003404]
[1739863888741,0.358906,95737.0,95727.0,0.1570354]
[1739863889056,0.358906,95737.0,95727.0,0.0003404]
[1739863889236,0.15,95737.0,95727.0,0.0003404]
[1739863889415,0.156686,95733.0,95727.0,0.0003404]
[1739863890143,0.00112,95729.0,95727.0,0.0003404]
[1739863891797,0.00112,95729.0,95727.0,0.0013404]
[1739863892425,0.00112,95729.0,95727.0,0.0023404]
[1739863892662,0.00112,95729.0,95728.0,0.05201052]
[1739863893304,0.00112,95729.0,95727.0,0.0023404]
[1739863893504,0.00112,95729.0,95727.0,0.0013404]
[1739863893717,0.00112,95729.0,95727.0,0.0003404]
[1739863893967,0.00112,95729.0,95728.0,0.002]
[1739863894338,0.00112,95729.0,95727.0,0.0003404]
[1739863894744,0.00112,95729.0,95727.0,0.0013404]
[1739863895824,0.00112,95729.0,95727.0,0.0023404]
[1739863898579,0.00112,95729.0,95727.0,0.0013404]
[1739863898815,0.00112,95729.0,95727.0,0.0023404]
[1739863899018,0.00112,95729.0,95727.0,0.0013404]
[1739863899240,0.00112,95729.0,95727.0,0.0023404]
[1739863901193,0.157813,95729.0,95727.0,0.0023404]
[1739863901402,0.00112,95729.0,95727.0,0.0013404]
[1739863901549,0.157812,95729.0,95727.0,0.0013404]
[1739863901751,0.157812,95729.0,95727.0,0.0023404]
[1739863902136,0.60252119,95728.0,95727.0,0.0023404]
[1739863902336,0.70502484,95728.0,95727.0,0.0013404]
[1739863902564,0.66503665,95728.0,95727.0,0.0013404]
[1739863903403,0.33060365,95728.0,95727.0,0.0013404]
[1739863903662,0.35123951,95728.0,95727.0,0.0003404]
[1739863903863,1.29514851,95728.0,95727.0,0.0003404]
[1739863904475,1.39765216,95728.0,95727.0,0.0003404]
[1739863905444,1.13991751,95728.0,95727.0,0.0003404]
[1739863905619,0.73319309,95728.0,95727.0,0.0003404]
[1739863908135,0.65509309,95728.0,95727.0,0.0003404]
[1739863911162,0.72150886,95728.0,95727.0,0.0003404]
[1739863912711,0.68650309,95728.0,95727.0,0.0003404]
[1739863913340,0.67013351,95728.0,95727.0,0.0003404]
[1739863913913,0.672277,95728.0,95727.0,0.0003404]
[1739863914109,0.00112,95729.0,95728.0,0.0824]
[1739863914323,0.00112,95729.0,95728.0,0.12723684]
[1739863914519,0.15112,95729.0,95728.0,0.0824]
[1739863914725,0.00112,95729.0,95728.0,0.0824]
[1739863915993,0.15112,95729.0,95728.0,0.0824]
[1739863916775,0.15112,95729.0,95728.0,0.0834]
[1739863917441,0.15112,95729.0,95728.0,0.0844]
[1739863920496,0.15112,95729.0,95728.0,0.002]
[1739863921295,0.17275771,95729.0,95728.0,0.002]
[1739863921526,0.15112,95729.0,95728.0,0.002]
[1739863921831,0.21236,95729.0,95728.0,0.002]
[1739863922171,0.21236,95729.0,95728.0,0.001]
[1739863922576,0.21236,95729.0,95727.0,0.0003404]
[1739863922776,0.306693,95728.0,95727.0,0.0003404]
[1739863933913,0.34137524,95728.0,95727.0,0.0003404]
[1739863934543,0.68370924,95728.0,95727.0,0.0003404]
[1739863935571,1.72707424,95728.0,95727.0,0.0003404]
[1739863935737,1.74344313,95728.0,95727.0,0.0003404]
[1739863937018,1.77455959,95728.0,95727.0,0.0003404]
[1739863937204,1.87706324,95728.0,95727.0,0.0003404]
[1739863938033,1.77455959,95728.0,95727.0,0.0003404]
[1739863938236,1.74344313,95728.0,95727.0,0.0003404]
[1739863940316,1.84594678,95728.0,95727.0,0.0003404]
[1739863940882,1.87706324,95728.0,95727.0,0.0003404]
[1739863941427,0.306707,95720.0,95719.0,0.0003406]
[1739863941627,1.10618381,95720.0,95719.0,0.0003406]
[1739863941958,1.06663781,95720.0,95719.0,0.0003406]
[1739863942767,0.46372424,95720.0,95719.0,0.0003406]
[1739863942969,0.306707,95720.0,95719.0,0.0003406]
[1739863943710,0.577891,95720.0,95719.0,0.0003406]
[1739863943869,0.4718,95720.0,95719.0,0.0003406]
[1739863944580,0.50648224,95720.0,95719.0,0.0003406]
[1739863944791,0.60898589,95720.0,95719.0,0.0003406]
[1739863945391,0.60898589,95720.0,95719.0,0.0013406]
[1739863945968,0.44389289,95720.0,95719.0,0.0013406]
[1739863946405,1.94180589,95720.0,95719.0,0.0013406]
[1739863946602,1.93174289,95720.0,95719.0,0.0013406]
[1739863946936,1.54070689,95720.0,95719.0,0.0013406]
[1739863947144,1.43820324,95720.0,95719.0,0.0013406]
[1739863947305,0.46580815,95720.0,95719.0,0.0013406]
[1739863947480,0.46580815,95720.0,95719.0,0.0003406]
[1739863949670,0.45055015,95720.0,95719.0,0.0003406]
[1739863950455,0.32307715,95720.0,95719.0,0.0003406]
[1739863951093,0.55160715,95720.0,95719.0,0.0003406]
[1739863951303,0.52020115,95720.0,95719.0,0.0003406]
[1739863951842,0.32307715,95720.0,95719.0,0.0003406]
[1739863952597,0.306707,95720.0,95719.0,0.0003406]
[1739863952822,0.502313,95720.0,95719.0,0.0003406]
[1739863952968,0.306707,95720.0,95719.0,0.0003406]
[1739863954862,0.507802,95720.0,95719.0,0.0003406]
[1739863955086,0.476396,95720.0,95719.0,0.0003406]
[1739863955491,0.306707,95720.0,95719.0,0.0003406]
[1739863955709,0.323077,95720.0,95719.0,0.0003406]
[1739863957487,0.486995,95720.0,95719.0,0.0003406]
[1739863957692,0.487415,95720.0,95719.0,0.0003406]
[1739863957897,0.323077,95720.0,95719.0,0.0003406]
[1739863959606,0.01637,95720.0,95719.0,0.0003406]
[1739863959764,0.156707,95720.0,95719.0,0.0003406]
[1739863959962,0.295147,95720.0,95719.0,0.0003406]
[1739863961503,0.296147,95720.0,95719.0,0.0003406]
[1739863961735,0.446147,95720.0,95719.0,0.0003406]
[1739863962111,0.431786,95720.0,95719.0,0.0003406]
[1739863962321,0.430786,95720.0,95719.0,0.0003406]
[1739863962931,0.307707,95720.0,95719.0,0.0003406]
[1739863963551,0.306707,95720.0,95719.0,0.0003406]
[1739863963767,0.308707,95720.0,95719.0,0.0003406]
[1739863963978,0.307707,95720.0,95719.0,0.0003406]
[1739863964199,0.308707,95720.0,95719.0,0.0003406]
[1739863964409,0.307707,95720.0,95719.0,0.0003406]
[1739863964613,0.308707,95720.0,95719.0,0.0003406]
[1739863965236,0.002,95720.0,95719.0,0.0003406]
[1739863965438,0.158707,95720.0,95719.0,0.0003406]
[1739863967089,0.156707,95720.0,95719.0,0.0003406]
[1739863967275,0.157707,95720.0,95719.0,0.0003406]
[1739863967793,0.156707,95720.0,95719.0,0.0003406]
[1739863968017,0.157707,95720.0,95719.0,0.0003406]
[1739863968126,0.158707,95720.0,95719.0,0.0003406]
[1739863968788,0.315918,95720.0,95719.0,0.0003406]
[1739863969208,0.158707,95720.0,95719.0,0.0003406]
[1739863969843,0.300355,95720.0,95719.0,0.0003406]
[1739863970054,0.158707,95720.0,95719.0,0.0003406]
[1739863977820,0.308707,95720.0,95719.0,0.0003406]
[1739863989060,0.308707,95720.0,95719.0,0.1281406]
[1739863989061,0.002,95720.0,95719.0,0.1281406]
[1739863989851,0.001,95720.0,95719.0,0.1281406]
[1739863990618,0.002,95720.0,95719.0,0.1281406]
[1739863990831,0.002,95720.0,95719.0,0.0003406]
[1739863991035,0.30672,95712.0,95711.0,0.8722]
[1739863991243,2.75075527,95712.0,95711.0,0.8722]
[1739863991479,3.28708099,95712.0,95711.0,0.8722]
[1739863991697,2.60720527,95712.0,95711.0,0.8722]
[1739863991900,1.54722267,95712.0,95711.0,0.8722]
[1739863992112,1.41423767,95712.0,95711.0,0.8722]
[1739863992326,0.82978514,95712.0,95711.0,0.8722]
[1739863992538,0.72728149,95712.0,95711.0,0.8722]
[1739863992754,0.27342649,95712.0,95711.0,0.8722]
[1739863993401,0.27142649,95712.0,95711.0,0.8732]
[1739863993611,0.27142649,95712.0,95711.0,0.8722]
[1739863993825,0.27342649,95712.0,95711.0,0.8722]
[1739863994037,0.00205536,95712.0,95711.0,0.8722]
[1739863994245,5.536e-05,95712.0,95711.0,0.9487]
[1739863995760,0.15005536,95712.0,95711.0,0.8722]
[1739863996775,5.536e-05,95712.0,95711.0,0.8722]
[1739863996978,0.15005536,95712.0,95711.0,0.8722]
[1739863997425,0.208956,95714.0,95711.0,0.8722]
[1739863997632,0.156718,95713.0,95711.0,0.87226467]
[1739864000200,0.15,95712.0,95711.0,0.87226467]
[1739864002882,0.156718,95713.0,95711.0,0.8259832]
[1739864003092,0.15672,95712.0,95711.0,0.8259832]
[1739864004238,0.188133,95712.0,95711.0,0.8259832]
[1739864006513,0.188133,95712.0,95711.0,0.8263238]
[1739864007693,0.0001703,95713.0,95711.0,0.9520238]
[1739864008709,0.1568883,95713.0,95711.0,0.9520238]
[1739864008850,0.0001703,95713.0,95711.0,0.9520238]
[1739864009665,0.0001703,95713.0,95711.0,0.9530238]
[1739864010601,0.0001703,95713.0,95711.0,0.9540238]
[1739864010810,0.1501703,95713.0,95711.0,0.9540238]
[1739864011013,0.0001703,95713.0,95711.0,0.9540238]
[1739864011213,0.0001703,95713.0,95711.0,0.9530238]
[1739864011659,0.0001703,95713.0,95711.0,0.9520238]
[1739864011855,0.0001703,95713.0,95711.0,0.9550238]
[1739864013032,0.0001703,95713.0,95711.0,0.9570238]
[1739864016200,0.2091143,95720.0,95711.0,0.9570238]
[1739864016418,0.0001703,95720.0,95711.0,0.9570238]
[1739864016587,0.15671,95719.0,95711.0,0.9570238]
[1739864017036,0.15671,95718.0,95711.0,0.9570238]
[1739864017452,0.156715,95715.0,95711.0,0.9570238]
[1739864017655,0.156713,95716.0,95711.0,0.9550238]
[1739864017866,0.0001703,95720.0,95711.0,0.9550238]
[1739864018079,0.15671,95718.0,95711.0,0.9550238]
[1739864018254,0.15,95717.0,95711.0,0.9520238]
[1739864018470,0.306712,95717.0,95711.0,0.9520238]
[1739864018688,0.15,95717.0,95711.0,0.9530238]
[1739864019705,0.00112,95713.0,95711.0,0.9530238]
[1739864019911,0.00112,95713.0,95711.0,0.9550238]
[1739864021363,0.00112,95713.0,95712.0,0.23452]
[1739864021565,0.00112,95713.0,95712.0,0.0778]
[1739864022645,0.00112,95713.0,95712.0,0.0818]
[1739864022842,0.00112,95713.0,95712.0,0.0848]
[1739864023046,0.00112,95713.0,95712.0,0.0778]
[1739864023446,0.00112,95713.0,95712.0,0.0828]
[1739864025460,0.156709,95719.0,95712.0,0.0828]
[1739864026270,0.15671,95718.0,95712.0,0.0798]
[1739864026603,0.15671,95718.0,95712.0,0.0778]
[1739864026803,0.07896347,95722.0,95712.0,0.0778]
[1739864026804,0.156712,95717.0,95712.0,0.0778]
[1739864027019,0.156712,95717.0,95712.0,0.0788]
[1739864027448,0.07896347,95722.0,95712.0,0.0788]
[1739864027654,0.15792694,95722.0,95712.0,0.0788]
[1739864027808,0.156711,95718.0,95712.0,0.0778]
[1739864028225,0.156711,95718.0,95712.0,0.0788]
[1739864028430,0.156712,95717.0,95712.0,0.0788]
[1739864028642,0.07896347,95722.0,95712.0,0.0788]
[1739864028840,0.15671,95718.0,95712.0,0.0788]
[1739864029070,0.15671,95718.0,95712.0,0.0798]
[1739864029231,0.15671,95718.0,95712.0,0.0778]
[1739864029430,0.208941,95721.0,95712.0,0.0778]
[1739864029431,0.156705,95721.0,95712.0,0.0778]
[1739864029634,0.07896347,95722.0,95712.0,0.0808]
[1739864029826,0.156708,95719.0,95712.0,0.0798]
[1739864030443,0.07896347,95722.0,95712.0,0.0798]
[1739864030644,0.156708,95719.0,95712.0,0.0808]
[1739864031099,0.07896347,95722.0,95712.0,0.0808]
[1739864031274,0.156705,95721.0,95712.0,0.23552]
[1739864031490,0.156707,95720.0,95712.0,0.0788]
[1739864031718,0.156707,95720.0,95712.0,0.0798]
[1739864032057,0.156707,95720.0,95712.0,0.0788]
[1739864032266,0.156706,95721.0,95712.0,0.234519]
[1739864032479,0.156707,95720.0,95712.0,0.234519]
[1739864033272,0.156707,95720.0,95712.0,0.0788]
[1739864033415,0.156707,95720.0,95712.0,0.0791404]
[1739864034416,0.156707,95720.0,95712.0,0.0781404]
[1739864034640,0.07896347,95722.0,95713.0,0.156718]
[1739864034890,0.23566647,95722.0,95714.0,0.156716]
[1739864035082,0.23566647,95722.0,95713.0,0.156718]
[1739864035485,0.23566647,95722.0,95712.0,0.0781404]
[1739864035715,0.23566647,95722.0,95713.0,0.156718]
[1739864036049,0.156705,95721.0,95713.0,0.156718]
[1739864036489,0.07896347,95722.0,95713.0,0.156717]
[1739864036919,0.07896347,95722.0,95716.0,0.0824]
[1739864037136,0.0001702,95725.0,95724.0,0.2391]
[1739864037371,0.0001702,95725.0,95724.0,0.2855]
[1739864037580,0.0001702,95725.0,95724.0,0.34519396]
[1739864038869,0.0001702,95725.0,95724.0,0.34719396]
[1739864039266,0.0001702,95725.0,95724.0,0.34519396]
[1739864039394,0.0001702,95725.0,95724.0,0.34719396]
[1739864039605,0.0001702,95725.0,95724.0,0.35019396]
[1739864040232,0.0001702,95725.0,95724.0,0.45269761]
[1739864041235,0.0001702,95725.0,95724.0,0.44969761]
[1739864041669,0.0001702,95725.0,95724.0,0.45469761]
[1739864042094,0.0001702,95725.0,95724.0,0.44769761]
[1739864042304,0.0001702,95725.0,95724.0,0.45469761]
[1739864042530,0.0001702,95725.0,95724.0,0.46169761]
[1739864047093,0.0001702,95725.0,95724.0,0.46203801]
[1739864060930,0.0001702,95725.0,95724.0,0.48503801]
[1739864061713,0.0001702,95725.0,95724.0,0.47803801]
[1739864061955,0.0001702,95725.0,95724.0,0.47103801]
[1739864062164,0.0001702,95725.0,95724.0,0.47803801]
[1739864062995,0.0001702,95725.0,95724.0,0.48503801]
[1739864063434,0.0001702,95725.0,95724.0,0.47803801]
[1739864063945,0.0001702,95725.0,95724.0,0.76290679]
[1739864068247,0.0001702,95740.0,95739.0,0.156675]
[1739864068451,0.0001702,95740.0,95739.0,0.42154615]
[1739864069700,0.0001702,95740.0,95739.0,0.42854615]
[1739864070516,0.0001702,95740.0,95739.0,0.42154615]
[1739864070719,0.0001702,95740.0,95739.0,0.43554615]
[1739864071008,0.0001702,95740.0,95739.0,0.42854615]
[1739864072330,0.0001702,95740.0,95739.0,0.43554615]
[1739864072698,0.0001702,95740.0,95739.0,0.42854615]
[1739864072875,0.0001702,95740.0,95739.0,0.96734615]
[1739864073086,0.0001702,95740.0,95739.0,0.97434615]
[1739864073491,0.0001702,95740.0,95739.0,0.9953665]
[1739864073694,0.0001702,95740.0,95739.0,0.9883665]
[1739864074256,0.0001702,95740.0,95739.0,0.9953665]
[1739864078747,0.0001702,95740.0,95739.0,1.27323528]
[1739864085676,0.02783447,95761.0,95758.0,0.156644]
[1739864085887,0.02783447,95761.0,95758.0,0.27481205]
[1739864086843,0.00021453,95759.0,95758.0,0.27481205]
[1739864087463,0.00021453,95759.0,95758.0,0.28081205]
[1739864087673,0.00021453,95759.0,95758.0,0.28581205]
[1739864091263,0.00021453,95759.0,95758.0,0.27981205]
[1739864091470,0.00021453,95759.0,95758.0,0.27481205]
[1739864091668,0.00021453,95759.0,95758.0,0.28081205]
[1739864091899,0.00021453,95759.0,95758.0,0.28581205]
[1739864092212,0.00021453,95759.0,95758.0,0.27981205]
[1739864093377,0.00021453,95759.0,95758.0,0.28581205]
[1739864093994,0.00021453,95759.0,95758.0,0.27981205]
[1739864094209,0.00021453,95759.0,95758.0,0.28181205]
[1739864094414,0.00021453,95759.0,95758.0,0.28681205]
[1739864094811,0.00021453,95759.0,95758.0,0.27481205]
[1739864095012,0.00021453,95759.0,95758.0,0.28081205]
[1739864095235,0.00021453,95759.0,95758.0,0.27481205]
[1739864095409,0.00021453,95759.0,95758.0,0.28181205]
[1739864095627,0.00021453,95759.0,95758.0,0.28781205]
[1739864096716,0.00021453,95759.0,95758.0,0.56568083]
[1739864097850,0.00021453,95759.0,95758.0,0.55268083]
[1739864098084,0.00021453,95759.0,95758.0,0.65418083]
[1739864098289,0.00021453,95759.0,95758.0,0.66718083]
[1739864098906,0.00021453,95759.0,95758.0,0.71388083]
[1739864099135,0.00021453,95759.0,95758.0,0.70788083]
[1739864099309,0.00021453,95759.0,95758.0,0.71488083]
[1739864099715,0.15,95791.0,95759.0,0.1059]
[1739864099924,0.07902352,95790.0,95761.0,0.023]
[1739864100059,0.07896347,95790.0,95764.0,0.0811]
[1739864100262,0.07896347,95790.0,95787.0,0.156596]
[1739864100483,0.0791,95797.0,95768.0,0.046]
[1739864100705,0.10671146,95797.0,95787.0,0.156596]
[1739864100911,0.156583,95796.0,95784.0,0.208801]
[1739864101113,0.10671146,95797.0,95789.0,0.156594]
[1739864101312,0.10671146,95797.0,95777.0,0.0823]
[1739864101667,0.10671146,95797.0,95787.0,0.002]
[1739864101816,0.10671146,95797.0,95793.0,0.156587]
[1739864102018,0.10671146,95797.0,95786.0,0.208798]
[1739864102019,0.10671146,95797.0,95790.0,0.208789]
[1739864102221,0.10671146,95797.0,95792.0,0.156588]
[1739864102421,0.02761146,95797.0,95786.0,0.208798]
[1739864102626,0.02761146,95797.0,95788.0,0.156595]
[1739864102822,0.02761146,95797.0,95787.0,0.0208798]
[1739864103882,0.156583,95796.0,95787.0,0.0208798]
[1739864104029,0.02761146,95797.0,95787.0,0.003]
[1739864104244,0.23638646,95797.0,95790.0,0.002]
[1739864104485,0.156585,95795.0,95790.0,0.002]
[1739864104959,0.18419246,95797.0,95790.0,0.002]
[1739864105191,0.18419246,95797.0,95785.0,0.1566]